[Event "Titled Tuesday Blitz May 4 2021"]
[White "Onufrienko, Vladislav"]
[Black "Vargas, Gabriela"]
[WhiteFideId "13804332"]
[BlackFideId "3700860"]
[WhiteElo "1661"]
[BlackElo "2116"]
[Result "1-0"]
[Round "08"]
[TimeControl "180+1"]
[Date "2021.05.04"]
[WhiteClock "0:02:10"]
[BlackClock "0:01:38"]

1. e4 {[%clk 0:03:00]}  e6 {[%clk 0:02:57]} 2. d4 {[%clk 0:03:00]}  d5 {[%clk 0:02:50]} 3. Nc3 {[%clk 0:03:01]}  Nf6 {[%clk 0:02:49]} 4. e5 {[%clk 0:03:02]}  Nfd7 {[%clk 0:02:48]} 5. f4 {[%clk 0:03:02]}  c5 {[%clk 0:02:48]} 6. Nf3 {[%clk 0:03:03]}  Nc6 {[%clk 0:02:49]} 7. Be3 {[%clk 0:03:03]}  a6 {[%clk 0:02:47]} 8. Qd2 {[%clk 0:03:01]}  b5 {[%clk 0:02:46]} 9. a3 {[%clk 0:03:01]}  Bb7 {[%clk 0:02:42]} 10. Rd1 {[%clk 0:02:46]}  Rc8 {[%clk 0:02:30]} 11. dxc5 {[%clk 0:02:38]}  Bxc5 {[%clk 0:02:28]} 12. Bxc5 {[%clk 0:02:31]}  Nxc5 {[%clk 0:02:29]} 13. Qf2 {[%clk 0:02:31]}  Qb6 {[%clk 0:02:26]} 14. Be2 {[%clk 0:02:23]}  Na4 {[%clk 0:02:13]} 15. Nxa4 {[%clk 0:02:17]}  Qxf2+ {[%clk 0:02:13]} 16. Kxf2 {[%clk 0:02:18]}  bxa4 {[%clk 0:02:14]} 17. c3 {[%clk 0:02:16]}  Rb8 {[%clk 0:02:05]} 18. Nd4 {[%clk 0:02:14]}  Nxd4 {[%clk 0:01:48]} 19. Rxd4 {[%clk 0:02:15]}  Bc6 {[%clk 0:01:47]} 20. Rb4 {[%clk 0:02:15]}  Rxb4 {[%clk 0:01:40]} 21. cxb4 {[%clk 0:02:14]}  Bd7 {[%clk 0:01:38]} 22. Bxa6 {[%clk 0:02:10]} 1-0


[Site "https://www.chess.com"]

[Event "Titled Tuesday Blitz May 4 2021"]
[White "Ozen, Bahadir"]
[Black "Mchedlishvili, Mikheil"]
[WhiteFideId "6337058"]
[BlackFideId "13600966"]
[WhiteElo "2503"]
[BlackElo "2618"]
[Result "1-0"]
[Round "08"]
[TimeControl "180+1"]
[Date "2021.05.04"]
[WhiteClock "0:00:16"]
[BlackClock "0:00:10"]

1. g3 {[%clk 0:03:00]}  d5 {[%clk 0:02:59]} 2. Bg2 {[%clk 0:02:59]}  Nf6 {[%clk 0:02:59]} 3. Nf3 {[%clk 0:02:59]}  g6 {[%clk 0:02:58]} 4. O-O {[%clk 0:02:59]}  Bg7 {[%clk 0:02:58]} 5. d3 {[%clk 0:03:00]}  c5 {[%clk 0:02:55]} 6. Nbd2 {[%clk 0:03:00]}  Nc6 {[%clk 0:02:55]} 7. e4 {[%clk 0:02:59]}  d4 {[%clk 0:02:55]} 8. a4 {[%clk 0:02:56]}  O-O {[%clk 0:02:54]} 9. Nc4 {[%clk 0:02:55]}  Nd7 {[%clk 0:02:39]} 10. Bd2 {[%clk 0:02:31]}  b6 {[%clk 0:02:36]} 11. Ne1 {[%clk 0:02:29]}  Rb8 {[%clk 0:02:32]} 12. f4 {[%clk 0:02:28]}  a6 {[%clk 0:02:30]} 13. e5 {[%clk 0:02:23]}  Bb7 {[%clk 0:02:30]} 14. Nf3 {[%clk 0:02:18]}  b5 {[%clk 0:02:27]} 15. axb5 {[%clk 0:02:19]}  axb5 {[%clk 0:02:27]} 16. Na3 {[%clk 0:02:18]}  Ba8 {[%clk 0:02:24]} 17. e6 {[%clk 0:02:01]}  fxe6 {[%clk 0:02:24]} 18. Ng5 {[%clk 0:02:01]}  Rf6 {[%clk 0:02:12]} 19. Qe2 {[%clk 0:02:01]}  e5 {[%clk 0:02:09]} 20. Bd5+ {[%clk 0:01:46]}  Kh8 {[%clk 0:02:09]} 21. Nf7+ {[%clk 0:01:45]}  Rxf7 {[%clk 0:02:08]} 22. Bxf7 {[%clk 0:01:46]}  exf4 {[%clk 0:02:04]} 23. gxf4 {[%clk 0:01:44]}  Nf6 {[%clk 0:01:31]} 24. f5 {[%clk 0:01:40]}  gxf5 {[%clk 0:01:30]} 25. Rxf5 {[%clk 0:01:36]}  e5 {[%clk 0:01:30]} 26. Raf1 {[%clk 0:01:17]}  Qe7 {[%clk 0:01:27]} 27. Ba2 {[%clk 0:01:11]}  c4 {[%clk 0:00:36]} 28. dxc4 {[%clk 0:01:04]}  b4 {[%clk 0:00:36]} 29. Nb5 {[%clk 0:01:03]}  Rf8 {[%clk 0:00:31]} 30. Bg5 {[%clk 0:00:57]}  Nd8 {[%clk 0:00:24]} 31. h3 {[%clk 0:00:39]}  Qb7 {[%clk 0:00:23]} 32. Kh2 {[%clk 0:00:40]}  Nd7 {[%clk 0:00:15]} 33. Nd6 {[%clk 0:00:32]}  Qc6 {[%clk 0:00:13]} 34. Rxf8+ {[%clk 0:00:32]}  Nxf8 {[%clk 0:00:13]} 35. Rxf8+ {[%clk 0:00:19]}  Bxf8 {[%clk 0:00:12]} 36. Bf6+ {[%clk 0:00:19]}  Bg7 {[%clk 0:00:10]} 37. Bxg7+ {[%clk 0:00:19]}  Kxg7 {[%clk 0:00:10]} 38. Qxe5+ {[%clk 0:00:20]}  Kf8 {[%clk 0:00:10]} 39. Qf6+ {[%clk 0:00:18]}  Kg8 {[%clk 0:00:10]} 40. c5+ {[%clk 0:00:16]} 1-0


[Site "https://www.chess.com"]

[Event "Titled Tuesday Blitz May 4 2021"]
[White "Perez Gormaz, Matias"]
[Black "Molchanov, Alexander"]
[WhiteFideId "3406342"]
[BlackFideId "24177687"]
[WhiteElo "2414"]
[BlackElo "2538"]
[Result "1-0"]
[Round "08"]
[TimeControl "180+1"]
[Date "2021.05.04"]
[WhiteClock "0:01:09"]
[BlackClock "0:00:59"]

1. e4 {[%clk 0:03:00]}  c5 {[%clk 0:02:58]} 2. Nf3 {[%clk 0:03:00]}  Nc6 {[%clk 0:02:59]} 3. d4 {[%clk 0:03:00]}  cxd4 {[%clk 0:02:57]} 4. Nxd4 {[%clk 0:03:01]}  Nf6 {[%clk 0:02:57]} 5. Nc3 {[%clk 0:03:02]}  e5 {[%clk 0:02:57]} 6. Ndb5 {[%clk 0:03:02]}  d6 {[%clk 0:02:58]} 7. Bg5 {[%clk 0:03:02]}  a6 {[%clk 0:02:58]} 8. Na3 {[%clk 0:03:03]}  b5 {[%clk 0:02:58]} 9. Bxf6 {[%clk 0:03:03]}  gxf6 {[%clk 0:02:58]} 10. Nd5 {[%clk 0:03:04]}  f5 {[%clk 0:02:58]} 11. g3 {[%clk 0:03:05]}  fxe4 {[%clk 0:02:58]} 12. Bg2 {[%clk 0:03:05]}  Be6 {[%clk 0:02:57]} 13. Bxe4 {[%clk 0:03:04]}  Bg7 {[%clk 0:02:57]} 14. c3 {[%clk 0:03:04]}  Rc8 {[%clk 0:02:56]} 15. Nc2 {[%clk 0:02:58]}  O-O {[%clk 0:02:46]} 16. O-O {[%clk 0:02:57]}  f5 {[%clk 0:02:44]} 17. Bg2 {[%clk 0:02:57]}  e4 {[%clk 0:02:41]} 18. Nf4 {[%clk 0:02:52]}  Bf7 {[%clk 0:02:38]} 19. Ne3 {[%clk 0:02:50]}  Qd7 {[%clk 0:02:27]} 20. Bh3 {[%clk 0:02:48]}  Be6 {[%clk 0:02:13]} 21. Qh5 {[%clk 0:02:38]}  Ne5 {[%clk 0:02:07]} 22. Nxe6 {[%clk 0:02:36]}  Qxe6 {[%clk 0:02:04]} 23. Bxf5 {[%clk 0:02:36]}  Qh6 {[%clk 0:01:50]} 24. Qxh6 {[%clk 0:02:32]}  Bxh6 {[%clk 0:01:51]} 25. Bxc8 {[%clk 0:02:32]}  Rxc8 {[%clk 0:01:52]} 26. Nf5 {[%clk 0:02:32]}  Bf8 {[%clk 0:01:50]} 27. Rfd1 {[%clk 0:02:30]}  Nd3 {[%clk 0:01:46]} 28. Rd2 {[%clk 0:02:04]}  Ne5 {[%clk 0:01:34]} 29. Kg2 {[%clk 0:02:00]}  Nc4 {[%clk 0:01:30]} 30. Re2 {[%clk 0:01:57]}  d5 {[%clk 0:01:30]} 31. Rd1 {[%clk 0:01:55]}  Rd8 {[%clk 0:01:31]} 32. b3 {[%clk 0:01:42]}  Nb6 {[%clk 0:01:29]} 33. Rxe4 {[%clk 0:01:40]}  Kf7 {[%clk 0:01:23]} 34. Ne3 {[%clk 0:01:34]}  Bg7 {[%clk 0:01:12]} 35. Rf4+ {[%clk 0:01:27]}  Ke6 {[%clk 0:01:11]} 36. c4 {[%clk 0:01:16]}  bxc4 {[%clk 0:01:03]} 37. bxc4 {[%clk 0:01:16]}  d4 {[%clk 0:01:04]} 38. Nf5 {[%clk 0:01:10]}  Be5 {[%clk 0:00:59]} 39. Nxd4+ {[%clk 0:01:09]} 1-0


[Site "https://www.chess.com"]

[Event "Titled Tuesday Blitz May 4 2021"]
[White "Piorun, Kacper"]
[Black "Howell, David W L"]
[WhiteFideId "1130420"]
[BlackFideId "410608"]
[WhiteElo "2535"]
[BlackElo "2643"]
[Result "0-1"]
[Round "08"]
[TimeControl "180+1"]
[Date "2021.05.04"]
[WhiteClock "0:00:01"]
[BlackClock "0:00:03"]

1. e4 {[%clk 0:03:00]}  e6 {[%clk 0:02:52]} 2. d4 {[%clk 0:02:57]}  d5 {[%clk 0:02:53]} 3. Nc3 {[%clk 0:02:58]}  dxe4 {[%clk 0:02:44]} 4. Nxe4 {[%clk 0:02:57]}  Nd7 {[%clk 0:02:45]} 5. g3 {[%clk 0:02:49]}  Ngf6 {[%clk 0:02:40]} 6. Nc3 {[%clk 0:02:49]}  Bd6 {[%clk 0:02:39]} 7. Bg2 {[%clk 0:02:48]}  O-O {[%clk 0:02:39]} 8. Nge2 {[%clk 0:02:46]}  c6 {[%clk 0:02:37]} 9. O-O {[%clk 0:02:46]}  e5 {[%clk 0:02:38]} 10. d5 {[%clk 0:02:42]}  cxd5 {[%clk 0:01:57]} 11. Nxd5 {[%clk 0:02:43]}  Nxd5 {[%clk 0:01:56]} 12. Qxd5 {[%clk 0:02:43]}  Nf6 {[%clk 0:01:54]} 13. Qb3 {[%clk 0:02:40]}  Qc7 {[%clk 0:01:48]} 14. Nc3 {[%clk 0:02:38]}  a6 {[%clk 0:01:47]} 15. Be3 {[%clk 0:02:35]}  Be6 {[%clk 0:01:42]} 16. Qxb7 {[%clk 0:01:56]}  Qxb7 {[%clk 0:01:43]} 17. Bxb7 {[%clk 0:01:56]}  Rab8 {[%clk 0:01:42]} 18. Bxa6 {[%clk 0:01:56]}  Rxb2 {[%clk 0:01:43]} 19. Bd3 {[%clk 0:01:57]}  Ra8 {[%clk 0:01:28]} 20. a4 {[%clk 0:01:54]}  Bb4 {[%clk 0:01:28]} 21. Ne4 {[%clk 0:01:27]}  Ba5 {[%clk 0:01:04]} 22. Nxf6+ {[%clk 0:01:04]}  gxf6 {[%clk 0:01:05]} 23. f4 {[%clk 0:01:05]}  Bc3 {[%clk 0:01:02]} 24. fxe5 {[%clk 0:00:47]}  fxe5 {[%clk 0:01:03]} 25. Bh6 {[%clk 0:00:42]}  Bd4+ {[%clk 0:00:57]} 26. Kg2 {[%clk 0:00:40]}  Bd5+ {[%clk 0:00:57]} 27. Kh3 {[%clk 0:00:41]}  e4 {[%clk 0:00:55]} 28. Be2 {[%clk 0:00:34]}  Rxc2 {[%clk 0:00:53]} 29. Rad1 {[%clk 0:00:33]}  Rxa4 {[%clk 0:00:30]} 30. Rc1 {[%clk 0:00:19]}  Raa2 {[%clk 0:00:21]} 31. Rxc2 {[%clk 0:00:18]}  Rxc2 {[%clk 0:00:22]} 32. Rd1 {[%clk 0:00:12]}  Rxe2 {[%clk 0:00:17]} 33. Rxd4 {[%clk 0:00:12]}  Be6+ {[%clk 0:00:17]} 34. g4 {[%clk 0:00:12]}  f6 {[%clk 0:00:18]} 35. Kg3 {[%clk 0:00:10]}  Kf7 {[%clk 0:00:18]} 36. h3 {[%clk 0:00:09]}  Kg6 {[%clk 0:00:15]} 37. Bf4 {[%clk 0:00:09]}  Kf7 {[%clk 0:00:11]} 38. Rb4 {[%clk 0:00:08]}  Bd5 {[%clk 0:00:11]} 39. h4 {[%clk 0:00:07]}  Re1 {[%clk 0:00:10]} 40. Rb5 {[%clk 0:00:06]}  Rg1+ {[%clk 0:00:08]} 41. Kh3 {[%clk 0:00:03]}  Rd1 {[%clk 0:00:06]} 42. Ra5 {[%clk 0:00:03]}  Rd3+ {[%clk 0:00:06]} 43. Kh2 {[%clk 0:00:02]}  Bc4 {[%clk 0:00:04]} 44. Ra7+ {[%clk 0:00:02]}  Ke6 {[%clk 0:00:04]} 45. Rc7 {[%clk 0:00:02]}  Bd5 {[%clk 0:00:03]} 46. Rxh7 {[%clk 0:00:02]}  Rf3 {[%clk 0:00:03]} 47. Bh6 {[%clk 0:00:01]}  e3 {[%clk 0:00:04]} 48. Rh8 {[%clk 0:00:01]}  Bc6 {[%clk 0:00:04]} 49. Rc8 {[%clk 0:00:01]}  Kd7 {[%clk 0:00:04]} 50. Ra8 {[%clk 0:00:01]}  Bxa8 {[%clk 0:00:03]} 0-1


[Site "https://www.chess.com"]

[Event "Titled Tuesday Blitz May 4 2021"]
[White "Plotnikov, Pavel"]
[Black "Hernandez Jimenez, Alexander Andres"]
[WhiteFideId "4170342"]
[BlackFideId "3900452"]
[WhiteElo "2298"]
[BlackElo "2151"]
[Result "1-0"]
[Round "08"]
[TimeControl "180+1"]
[Date "2021.05.04"]
[WhiteClock "0:00:08"]
[BlackClock "0:00:03"]

1. e4 {[%clk 0:03:00]}  c5 {[%clk 0:02:59]} 2. Nf3 {[%clk 0:02:58]}  d6 {[%clk 0:02:59]} 3. d4 {[%clk 0:02:58]}  cxd4 {[%clk 0:03:00]} 4. Nxd4 {[%clk 0:02:59]}  Nf6 {[%clk 0:03:00]} 5. Nc3 {[%clk 0:02:59]}  a6 {[%clk 0:03:01]} 6. a4 {[%clk 0:02:58]}  e5 {[%clk 0:03:00]} 7. Nf3 {[%clk 0:02:57]}  Qc7 {[%clk 0:02:42]} 8. Bg5 {[%clk 0:02:55]}  Nbd7 {[%clk 0:02:42]} 9. Bd3 {[%clk 0:02:52]}  Be7 {[%clk 0:02:39]} 10. O-O {[%clk 0:02:51]}  O-O {[%clk 0:02:37]} 11. h3 {[%clk 0:02:48]}  h6 {[%clk 0:02:32]} 12. Be3 {[%clk 0:02:48]}  b6 {[%clk 0:02:29]} 13. Nh4 {[%clk 0:02:38]}  Nc5 {[%clk 0:02:26]} 14. Bxc5 {[%clk 0:02:22]}  dxc5 {[%clk 0:02:23]} 15. Qf3 {[%clk 0:02:21]}  c4 {[%clk 0:02:08]} 16. Be2 {[%clk 0:02:18]}  Rd8 {[%clk 0:01:49]} 17. Rad1 {[%clk 0:02:16]}  Be6 {[%clk 0:01:43]} 18. Nf5 {[%clk 0:02:09]}  Bxf5 {[%clk 0:01:36]} 19. Qxf5 {[%clk 0:02:08]}  Rd4 {[%clk 0:01:30]} 20. Rxd4 {[%clk 0:01:55]}  exd4 {[%clk 0:01:30]} 21. Nd5 {[%clk 0:01:55]}  Nxd5 {[%clk 0:01:28]} 22. Qxd5 {[%clk 0:01:54]}  Rc8 {[%clk 0:01:11]} 23. Qxd4 {[%clk 0:01:50]}  Bf6 {[%clk 0:01:11]} 24. Qd5 {[%clk 0:01:01]}  Bxb2 {[%clk 0:01:09]} 25. Rd1 {[%clk 0:01:02]}  Bf6 {[%clk 0:00:59]} 26. Qf5 {[%clk 0:00:54]}  Rd8 {[%clk 0:00:52]} 27. Rxd8+ {[%clk 0:00:53]}  Qxd8 {[%clk 0:00:49]} 28. Bxc4 {[%clk 0:00:52]}  Qd1+ {[%clk 0:00:48]} 29. Kh2 {[%clk 0:00:52]}  Qxc2 {[%clk 0:00:47]} 30. Qc8+ {[%clk 0:00:49]}  Kh7 {[%clk 0:00:46]} 31. Qf5+ {[%clk 0:00:49]}  Kg8 {[%clk 0:00:46]} 32. Qd5 {[%clk 0:00:15]}  Be5+ {[%clk 0:00:26]} 33. Qxe5 {[%clk 0:00:11]}  Qxc4 {[%clk 0:00:25]} 34. Qb8+ {[%clk 0:00:11]}  Kh7 {[%clk 0:00:24]} 35. Qxb6 {[%clk 0:00:08]}  Qxa4 {[%clk 0:00:23]} 36. e5 {[%clk 0:00:07]}  Qb5 {[%clk 0:00:12]} 37. Qc7 {[%clk 0:00:06]}  a5 {[%clk 0:00:10]} 38. Qxf7 {[%clk 0:00:06]}  Qxe5+ {[%clk 0:00:09]} 39. g3 {[%clk 0:00:06]}  a4 {[%clk 0:00:08]} 40. Qa2 {[%clk 0:00:07]}  Qd4 {[%clk 0:00:06]} 41. Qb1+ {[%clk 0:00:07]}  g6 {[%clk 0:00:05]} 42. Qb7+ {[%clk 0:00:07]}  Kg8 {[%clk 0:00:05]} 43. Qa8+ {[%clk 0:00:08]}  Kf7 {[%clk 0:00:03]} 44. Kg2 {[%clk 0:00:08]}  Kf6 {[%clk 0:00:03]} 45. Qh8+ {[%clk 0:00:08]} 1-0


[Site "https://www.chess.com"]

[Event "Titled Tuesday Blitz May 4 2021"]
[White "Podetti, Davide"]
[Black "Yurtseven, Melih"]
[WhiteFideId "893617"]
[BlackFideId "6312160"]
[WhiteElo "2131"]
[BlackElo "2160"]
[Result "0-1"]
[Round "08"]
[TimeControl "180+1"]
[Date "2021.05.04"]
[WhiteClock "0:00:12"]
[BlackClock "0:00:17"]

1. e4 {[%clk 0:03:00]}  e6 {[%clk 0:03:00]} 2. d4 {[%clk 0:02:59]}  d5 {[%clk 0:03:00]} 3. Nc3 {[%clk 0:03:00]}  Nf6 {[%clk 0:03:00]} 4. e5 {[%clk 0:03:00]}  Nfd7 {[%clk 0:03:00]} 5. f4 {[%clk 0:03:01]}  c5 {[%clk 0:03:01]} 6. Nf3 {[%clk 0:03:01]}  a6 {[%clk 0:02:58]} 7. Be3 {[%clk 0:02:59]}  Qb6 {[%clk 0:02:56]} 8. Na4 {[%clk 0:02:46]}  Qa5+ {[%clk 0:02:55]} 9. c3 {[%clk 0:02:46]}  cxd4 {[%clk 0:02:54]} 10. b4 {[%clk 0:02:46]}  Qc7 {[%clk 0:02:52]} 11. Bxd4 {[%clk 0:02:39]}  Nc6 {[%clk 0:02:40]} 12. Be3 {[%clk 0:02:33]}  b5 {[%clk 0:02:29]} 13. Nb2 {[%clk 0:02:31]}  a5 {[%clk 0:02:30]} 14. Bxb5 {[%clk 0:02:27]}  axb4 {[%clk 0:02:29]} 15. cxb4 {[%clk 0:02:27]}  Bxb4+ {[%clk 0:02:26]} 16. Kf2 {[%clk 0:02:28]}  O-O {[%clk 0:02:21]} 17. Qc2 {[%clk 0:02:16]}  Bb7 {[%clk 0:02:17]} 18. Nd3 {[%clk 0:02:08]}  Ba3 {[%clk 0:02:15]} 19. Rab1 {[%clk 0:01:35]}  Rfc8 {[%clk 0:02:12]} 20. Qb3 {[%clk 0:01:21]}  Qa5 {[%clk 0:02:05]} 21. Rhd1 {[%clk 0:01:03]}  h6 {[%clk 0:02:01]} 22. g4 {[%clk 0:01:00]}  Rab8 {[%clk 0:01:57]} 23. Qa4 {[%clk 0:00:56]}  Qxa4 {[%clk 0:01:44]} 24. Bxa4 {[%clk 0:00:57]}  Ba6 {[%clk 0:01:45]} 25. Nfe1 {[%clk 0:00:32]}  Bc4 {[%clk 0:01:36]} 26. Bb3 {[%clk 0:00:29]}  Bxb3 {[%clk 0:01:20]} 27. axb3 {[%clk 0:00:29]}  d4 {[%clk 0:01:19]} 28. Bd2 {[%clk 0:00:27]}  Be7 {[%clk 0:01:19]} 29. Nf3 {[%clk 0:00:26]}  Nc5 {[%clk 0:01:18]} 30. Nxc5 {[%clk 0:00:26]}  Bxc5 {[%clk 0:01:19]} 31. Ke2 {[%clk 0:00:26]}  Rd8 {[%clk 0:01:15]} 32. Kd3 {[%clk 0:00:26]}  Rd5 {[%clk 0:01:12]} 33. Rdc1 {[%clk 0:00:26]}  Rb5 {[%clk 0:01:03]} 34. Rc4 {[%clk 0:00:24]}  g6 {[%clk 0:00:53]} 35. Ne1 {[%clk 0:00:16]}  g5 {[%clk 0:00:50]} 36. Ke4 {[%clk 0:00:16]}  gxf4 {[%clk 0:00:47]} 37. Nd3 {[%clk 0:00:16]}  Ne7 {[%clk 0:00:26]} 38. Nxf4 {[%clk 0:00:16]}  Rd7 {[%clk 0:00:24]} 39. Rbc1 {[%clk 0:00:16]}  Ba3 {[%clk 0:00:23]} 40. Rb1 {[%clk 0:00:15]}  Nd5 {[%clk 0:00:21]} 41. Nd3 {[%clk 0:00:15]}  f6 {[%clk 0:00:20]} 42. exf6 {[%clk 0:00:14]}  Nxf6+ {[%clk 0:00:21]} 43. Kf3 {[%clk 0:00:15]}  e5 {[%clk 0:00:21]} 44. Ra1 {[%clk 0:00:14]}  e4+ {[%clk 0:00:21]} 45. Kg2 {[%clk 0:00:13]}  Bf8 {[%clk 0:00:20]} 46. Nf4 {[%clk 0:00:12]}  e3 {[%clk 0:00:19]} 47. Be1 {[%clk 0:00:12]}  d3 {[%clk 0:00:19]} 48. Rc6 {[%clk 0:00:12]}  Nxg4 {[%clk 0:00:17]} 49. Rg6+ {[%clk 0:00:11]}  Rg7 {[%clk 0:00:17]} 50. Rxg7+ {[%clk 0:00:12]}  Bxg7 {[%clk 0:00:17]} 51. Nxd3 {[%clk 0:00:12]}  Bxa1 {[%clk 0:00:17]} 0-1


[Site "https://www.chess.com"]

[Event "Titled Tuesday Blitz May 4 2021"]
[White "Poormosavi, Seyed Kian"]
[Black "Aditya Mittal"]
[WhiteFideId "12585807"]
[BlackFideId "35042025"]
[WhiteElo "2134"]
[BlackElo "2171"]
[Result "0-1"]
[Round "08"]
[TimeControl "180+1"]
[Date "2021.05.04"]
[WhiteClock "0:00:09"]
[BlackClock "0:01:15"]

1. e4 {[%clk 0:02:53]}  c5 {[%clk 0:03:00]} 2. Nf3 {[%clk 0:02:52]}  d6 {[%clk 0:03:00]} 3. c4 {[%clk 0:02:52]}  Nf6 {[%clk 0:03:01]} 4. Nc3 {[%clk 0:02:52]}  e5 {[%clk 0:03:01]} 5. Be2 {[%clk 0:02:50]}  Nc6 {[%clk 0:03:01]} 6. d3 {[%clk 0:02:50]}  h6 {[%clk 0:03:00]} 7. O-O {[%clk 0:02:51]}  Bg4 {[%clk 0:03:01]} 8. Ne1 {[%clk 0:02:50]}  Bxe2 {[%clk 0:02:50]} 9. Nxe2 {[%clk 0:02:50]}  g5 {[%clk 0:02:51]} 10. g3 {[%clk 0:02:44]}  Qd7 {[%clk 0:02:48]} 11. f4 {[%clk 0:02:43]}  gxf4 {[%clk 0:02:47]} 12. gxf4 {[%clk 0:02:43]}  Nh5 {[%clk 0:02:31]} 13. f5 {[%clk 0:02:27]}  Be7 {[%clk 0:02:30]} 14. Nc3 {[%clk 0:02:24]}  Nf6 {[%clk 0:02:17]} 15. Kh1 {[%clk 0:02:17]}  O-O-O {[%clk 0:02:17]} 16. Be3 {[%clk 0:02:08]}  Rdg8 {[%clk 0:02:15]} 17. Nf3 {[%clk 0:02:04]}  Nd4 {[%clk 0:02:04]} 18. Bxd4 {[%clk 0:01:51]}  exd4 {[%clk 0:02:03]} 19. Ne2 {[%clk 0:01:27]}  Ng4 {[%clk 0:02:01]} 20. Qd2 {[%clk 0:01:14]}  Bg5 {[%clk 0:02:01]} 21. Nxg5 {[%clk 0:01:08]}  hxg5 {[%clk 0:02:02]} 22. Ng3 {[%clk 0:01:04]}  f6 {[%clk 0:01:53]} 23. Rg1 {[%clk 0:00:28]}  Rh4 {[%clk 0:01:52]} 24. Nf1 {[%clk 0:00:27]}  Rgh8 {[%clk 0:01:51]} 25. Qe2 {[%clk 0:00:27]}  Ne5 {[%clk 0:01:43]} 26. Rg2 {[%clk 0:00:25]}  g4 {[%clk 0:01:40]} 27. Rf2 {[%clk 0:00:21]}  Qh7 {[%clk 0:01:39]} 28. b4 {[%clk 0:00:17]}  Nf3 {[%clk 0:01:30]} 29. Rg2 {[%clk 0:00:14]}  Qh6 {[%clk 0:01:18]} 30. Rb1 {[%clk 0:00:11]}  Qf4 {[%clk 0:01:18]} 31. bxc5 {[%clk 0:00:10]}  dxc5 {[%clk 0:01:17]} 32. Qb2 {[%clk 0:00:09]}  b6 {[%clk 0:01:16]} 33. Qb5 {[%clk 0:00:09]}  Rxh2+ {[%clk 0:01:14]} 34. Nxh2 {[%clk 0:00:09]}  Rxh2+ {[%clk 0:01:15]} 0-1


[Site "https://www.chess.com"]

[Event "Titled Tuesday Blitz May 4 2021"]
[White "Prraneeth Vuppala"]
[Black "Rakotomaharo, Fy Antenaina"]
[WhiteFideId "46622373"]
[BlackFideId "13100050"]
[WhiteElo "1759"]
[BlackElo "2378"]
[Result "0-1"]
[Round "08"]
[TimeControl "180+1"]
[Date "2021.05.04"]
[WhiteClock "0:00:11"]
[BlackClock "0:00:53"]

1. e4 {[%clk 0:03:00]}  c5 {[%clk 0:02:56]} 2. Nf3 {[%clk 0:03:00]}  d6 {[%clk 0:02:56]} 3. d4 {[%clk 0:03:00]}  cxd4 {[%clk 0:02:57]} 4. Nxd4 {[%clk 0:03:01]}  Nf6 {[%clk 0:02:56]} 5. Nc3 {[%clk 0:03:01]}  g6 {[%clk 0:02:53]} 6. Be3 {[%clk 0:02:57]}  a6 {[%clk 0:02:53]} 7. f3 {[%clk 0:02:53]}  h5 {[%clk 0:02:50]} 8. Bc4 {[%clk 0:02:52]}  Nbd7 {[%clk 0:02:48]} 9. Qd2 {[%clk 0:02:50]}  b5 {[%clk 0:02:47]} 10. Bd5 {[%clk 0:02:50]}  Nxd5 {[%clk 0:02:42]} 11. Nxd5 {[%clk 0:02:36]}  Bb7 {[%clk 0:02:37]} 12. a4 {[%clk 0:02:32]}  e6 {[%clk 0:02:25]} 13. Bg5 {[%clk 0:02:23]}  Qc8 {[%clk 0:02:07]} 14. Nf6+ {[%clk 0:02:23]}  Nxf6 {[%clk 0:02:06]} 15. Bxf6 {[%clk 0:02:24]}  Bh6 {[%clk 0:02:04]} 16. Qb4 {[%clk 0:02:18]}  O-O {[%clk 0:02:03]} 17. O-O {[%clk 0:02:07]}  e5 {[%clk 0:01:52]} 18. Nb3 {[%clk 0:01:42]}  Qxc2 {[%clk 0:01:44]} 19. Na5 {[%clk 0:01:33]}  Be3+ {[%clk 0:01:34]} 20. Kh1 {[%clk 0:01:32]}  Bd2 {[%clk 0:01:33]} 21. Qxd6 {[%clk 0:01:23]}  Bxa5 {[%clk 0:01:32]} 22. Bxe5 {[%clk 0:01:13]}  Qc6 {[%clk 0:01:32]} 23. Qd4 {[%clk 0:01:09]}  Bb6 {[%clk 0:01:23]} 24. Qd2 {[%clk 0:01:08]}  f6 {[%clk 0:01:21]} 25. Rac1 {[%clk 0:01:03]}  Qe6 {[%clk 0:01:21]} 26. Bc3 {[%clk 0:00:42]}  Rad8 {[%clk 0:01:09]} 27. Qh6 {[%clk 0:00:41]}  Qf7 {[%clk 0:01:09]} 28. a5 {[%clk 0:00:39]}  Bd4 {[%clk 0:01:05]} 29. Bb4 {[%clk 0:00:27]}  Rfe8 {[%clk 0:01:02]} 30. g4 {[%clk 0:00:21]}  hxg4 {[%clk 0:00:58]} 31. Rc2 {[%clk 0:00:19]}  gxf3 {[%clk 0:00:54]} 32. Rxf3 {[%clk 0:00:16]}  Bxe4 {[%clk 0:00:54]} 33. Rg2 {[%clk 0:00:11]}  Bxf3 {[%clk 0:00:53]} 0-1


[Site "https://www.chess.com"]

[Event "Titled Tuesday Blitz May 4 2021"]
[White "Ptacnikova, Lenka"]
[Black "Lopez Gracia, Fernando"]
[WhiteFideId "305650"]
[BlackFideId "2207184"]
[WhiteElo "1984"]
[BlackElo "2315"]
[Result "1-0"]
[Round "08"]
[TimeControl "180+1"]
[Date "2021.05.04"]
[WhiteClock "0:01:20"]
[BlackClock "0:01:33"]

1. Nf3 {[%clk 0:03:00]}  d5 {[%clk 0:02:59]} 2. g3 {[%clk 0:02:59]}  Nd7 {[%clk 0:03:00]} 3. Bg2 {[%clk 0:03:00]}  e5 {[%clk 0:03:00]} 4. O-O {[%clk 0:02:59]}  Ngf6 {[%clk 0:03:00]} 5. c4 {[%clk 0:02:57]}  c6 {[%clk 0:03:01]} 6. cxd5 {[%clk 0:02:56]}  cxd5 {[%clk 0:03:02]} 7. d3 {[%clk 0:02:55]}  Bd6 {[%clk 0:03:01]} 8. b3 {[%clk 0:02:54]}  O-O {[%clk 0:03:01]} 9. Ba3 {[%clk 0:02:54]}  Re8 {[%clk 0:03:01]} 10. Bxd6 {[%clk 0:02:53]}  b6 {[%clk 0:02:58]} 11. Ba3 {[%clk 0:02:42]}  Bb7 {[%clk 0:02:55]} 12. Nc3 {[%clk 0:02:40]}  Rc8 {[%clk 0:02:55]} 13. Rc1 {[%clk 0:02:39]}  Nc5 {[%clk 0:02:55]} 14. d4 {[%clk 0:02:35]}  e4 {[%clk 0:02:46]} 15. dxc5 {[%clk 0:02:33]}  exf3 {[%clk 0:02:46]} 16. Bxf3 {[%clk 0:02:33]}  bxc5 {[%clk 0:02:47]} 17. Na4 {[%clk 0:02:28]}  Qa5 {[%clk 0:02:06]} 18. Bxc5 {[%clk 0:02:20]}  Bc6 {[%clk 0:02:03]} 19. Bd4 {[%clk 0:02:15]}  Ne4 {[%clk 0:01:55]} 20. Bxe4 {[%clk 0:01:57]}  Rxe4 {[%clk 0:01:56]} 21. Rc5 {[%clk 0:01:48]}  Qb4 {[%clk 0:01:37]} 22. e3 {[%clk 0:01:38]}  Ree8 {[%clk 0:01:38]} 23. Qc2 {[%clk 0:01:27]}  Bd7 {[%clk 0:01:37]} 24. Rc1 {[%clk 0:01:24]}  Qb7 {[%clk 0:01:33]} 25. Rc7 {[%clk 0:01:20]} 1-0


[Site "https://www.chess.com"]